fUSD/lending_fUSD_20260514
["ID","MTS","AMOUNT","RATE_DAILY","PERIOD"]
[422252401,1778766639000,-175.80202671,0.0002,2]
[422252405,1778766639000,-214.518505,0.000201,10]
[422252402,1778766639000,-200.0,0.0002,10]
[422252406,1778766639000,-2586.85809042,0.00020236,2]
[422252380,1778766639000,-163.29773957,0.0002,2]
[422252395,1778766639000,-466.0,0.0002,2]
[422252378,1778766639000,-2311.0,0.00019955,2]
[422252357,1778766639000,-275.0,0.00018464,2]
[422252384,1778766639000,-3426.0,0.0002,2]
[422252362,1778766639000,-603.40096552,0.00018572,2]
[422252363,1778766639000,-2319.72410669,0.00018592,2]
[422252404,1778766639000,-13767.27727345,0.00020047,2]
[422252356,1778766639000,-200.0,0.00018464,2]
[422252355,1778766639000,-1228.222,0.00018464,2]
[422252359,1778766639000,-174.0,0.00018464,2]
[422252360,1778766639000,-1075.147,0.00018464,2]
[422252361,1778766639000,-769.52305994,0.000185,2]
[422252364,1778766639000,-769.52305994,0.000187,2]
[422252358,1778766639000,-6052.0,0.00018464,2]
[422252366,1778766639000,-2845.5,0.00019,2]
[422252386,1778766639000,-6111.0,0.0002,2]
[422252365,1778766639000,-163.0,0.00018941,2]
[422252369,1778766639000,-15000.0,0.00019101,4]
[422252368,1778766639000,-15000.0,0.00019101,4]
[422252374,1778766639000,-2405.55389864,0.0001914,2]
[422252372,1778766639000,-15000.0,0.00019101,4]
[422252371,1778766639000,-15000.0,0.00019101,4]
[422252376,1778766639000,-2494.55939289,0.00019688,2]
[422252370,1778766639000,-15000.0,0.00019101,4]
[422252375,1778766639000,-180.24546421,0.00019232,2]
[422252373,1778766639000,-11455.90633333,0.00019101,4]
[422252385,1778766639000,-15000.0,0.0002,2]
[422252377,1778766639000,-900.0,0.000199,7]
[422252367,1778766639000,-2360.39947421,0.00019017,2]
[422252410,1778766639000,-4816.77,0.00020548,2]
[422252403,1778766639000,-20595.58,0.0002,2]
[422252412,1778766639000,-4816.77,0.00020548,2]
[422252440,1778766639000,-283.0,0.00021,2]
[422252437,1778766639000,-603.40096552,0.00020931,2]
[422252443,1778766639000,-3426.0,0.00021,2]
[422252447,1778766639000,-6111.0,0.00021,2]
[422252444,1778766639000,-15000.0,0.00021,2]
[422252445,1778766639000,-6111.0,0.00021,2]
[422252446,1778766639000,-15000.0,0.00021,2]
[422252453,1778766639000,-169.0,0.00021,2]
[422252448,1778766639000,-4639.0,0.00021,2]
[422252451,1778766639000,-711.0,0.00021,2]
[422252450,1778766639000,-202.0,0.00021,2]
[422252452,1778766639000,-248.0,0.00021,2]
[422252449,1778766639000,-237.0,0.00021,2]
[422252454,1778766639000,-466.0,0.00021,2]
[422252455,1778766639000,-2367.0,0.00021,2]
[422252456,1778766639000,-525.0485446,0.00021,2]
[422252457,1778766639000,-157.0,0.00021,2]
[422252462,1778766639000,-157.0,0.00021,2]
[422252464,1778766639000,-564.15,0.00021057,2]
[422252458,1778766639000,-157.0,0.00021,2]
[422252460,1778766639000,-157.0,0.00021,2]
[422252459,1778766639000,-157.0,0.00021,2]
[422252463,1778766639000,-157.0,0.00021,2]
[422252465,1778766639000,-453.63,0.00021205,2]
[422252420,1778766639000,-4816.77,0.00020548,2]
[422252439,1778766639000,-10000.0,0.00021,2]
[422252436,1778766639000,-2682.57183977,0.00020784,2]
[422252461,1778766639000,-157.0,0.00021,2]
[422252438,1778766639000,-307.92,0.00020975,2]
[422252442,1778766639000,-217.0,0.00021,2]
[422252414,1778766639000,-4816.77,0.00020548,2]
[422252413,1778766639000,-4816.77,0.00020548,2]
[422252409,1778766639000,-4816.77,0.00020548,2]
[422252416,1778766639000,-4816.77,0.00020548,2]
[422252415,1778766639000,-4816.77,0.00020548,2]
[422252419,1778766639000,-4816.77,0.00020548,2]
[422252411,1778766639000,-4816.77,0.00020548,2]
[422252417,1778766639000,-4816.77,0.00020548,2]
[422252421,1778766639000,-4816.77,0.00020548,2]
[422252422,1778766639000,-4816.77,0.00020548,2]
[422252432,1778766639000,-4816.77,0.00020548,2]
[422252418,1778766639000,-4816.77,0.00020548,2]
[422252423,1778766639000,-4816.77,0.00020548,2]
[422252425,1778766639000,-4816.77,0.00020548,2]
[422252435,1778766639000,-500.0,0.00020782,2]
[422252441,1778766639000,-206.0,0.00021,2]
[422252433,1778766639000,-4816.77,0.00020548,2]
[422252431,1778766639000,-4816.77,0.00020548,2]
[422252434,1778766639000,-21796.06,0.00020548,2]
[422252428,1778766639000,-4816.77,0.00020548,2]
[422252426,1778766639000,-4816.77,0.00020548,2]
[422252424,1778766639000,-4816.77,0.00020548,2]
[422252429,1778766639000,-4816.77,0.00020548,2]
[422252427,1778766639000,-4816.77,0.00020548,2]
[422252430,1778766639000,-4816.77,0.00020548,2]
[422252522,1778766640000,-150.0,0.00021464,2]
[422252525,1778766640000,-158.36744358,0.000215,22]
[422252524,1778766640000,-153.14320924,0.000215,22]
[422252521,1778766640000,-6052.0,0.00021464,2]
[422252509,1778766640000,-281.45861023,0.0002144,2]
[422252520,1778766640000,-150.0,0.00021464,2]
[422252518,1778766640000,-1270.0,0.00021464,2]
[422252507,1778766640000,-482.55,0.00021413,2]
[422252523,1778766640000,-930.0,0.00021464,2]
[422252516,1778766640000,-1354.0,0.00021464,2]
[422252519,1778766640000,-1223.0,0.00021464,2]
[422252526,1778766640000,-482.55,0.00021627,2]
[422252529,1778766640000,-2884.75459676,0.0002188,2]
[422252531,1778766640000,-402.98440873,0.00021918,2]
[422252533,1778766640000,-978.0,0.00021938,7]
[422252528,1778766640000,-564.15,0.00021867,2]
[422252532,1778766640000,-20595.58,0.00021923,2]
[422252530,1778766640000,-5000.0,0.00021918,2]
[422252535,1778766640000,-571.0,0.00021938,7]
[422252545,1778766640000,-169.0,0.00022,2]
[422252534,1778766640000,-3126.0,0.00021938,7]
[422252546,1778766640000,-466.0,0.00022,2]
[422252536,1778766640000,-206.0,0.00022,2]
[422252514,1778766640000,-926.0,0.00021464,2]
[422252540,1778766640000,-237.0,0.00022,2]
[422252527,1778766640000,-482.55,0.00021841,2]
[422252512,1778766640000,-3542.0,0.00021464,2]
[422252497,1778766640000,-2000.0,0.00021279,2]
[422252503,1778766640000,-564.15,0.00021315,2]
[422252541,1778766640000,-202.0,0.00022,2]
[422252467,1778766640000,-2000.0,0.00021249,2]
[422252475,1778766640000,-3002.89,0.00021273,2]
[422252477,1778766640000,-329.59,0.00021273,2]
[422252479,1778766640000,-2423.94,0.00021273,2]
[422252468,1778766640000,-2000.0,0.00021249,2]
[422252473,1778766640000,-2000.0,0.00021249,2]
[422252466,1778766640000,-2000.0,0.00021249,2]
[422252474,1778766640000,-2000.0,0.00021249,2]
[422252471,1778766640000,-2000.0,0.00021249,2]
[422252469,1778766640000,-2000.0,0.00021249,2]
[422252470,1778766640000,-2000.0,0.00021249,2]
[422252472,1778766640000,-2000.0,0.00021249,2]
[422252481,1778766640000,-2000.0,0.00021279,2]
[422252493,1778766640000,-2000.0,0.00021279,2]
[422252495,1778766640000,-2000.0,0.00021279,2]
[422252480,1778766640000,-5584.68,0.00021273,2]
[422252486,1778766640000,-2000.0,0.00021279,2]
[422252483,1778766640000,-2000.0,0.00021279,2]
[422252484,1778766640000,-2000.0,0.00021279,2]
[422252490,1778766640000,-2000.0,0.00021279,2]
[422252488,1778766640000,-2000.0,0.00021279,2]
[422252482,1778766640000,-2000.0,0.00021279,2]
[422252499,1778766640000,-2000.0,0.00021279,2]
[422252501,1778766640000,-2000.0,0.00021279,2]
[422252505,1778766640000,-2781.82699784,0.00021332,2]
[422252539,1778766640000,-4639.0,0.00022,2]
[422252589,1778766640000,-154.0,0.00023,30]
[422252538,1778766640000,-3426.0,0.00022,2]
[422252573,1778766640000,-202.0,0.00023,2]
[422252576,1778766640000,-200.0,0.00023,30]
[422252574,1778766640000,-200.0,0.00023,30]
[422252578,1778766640000,-169.0,0.00023,2]
[422252588,1778766640000,-154.0,0.00023,30]
[422252580,1778766640000,-363.0,0.00023,30]
[422252577,1778766640000,-248.0,0.00023,2]
[422252579,1778766640000,-466.0,0.00023,2]
[422252582,1778766640000,-166.0,0.00023,30]
[422252584,1778766640000,-154.0,0.00023,30]
[422252583,1778766640000,-154.0,0.00023,30]
[422252581,1778766640000,-2367.0,0.00023,2]
[422252587,1778766640000,-154.0,0.00023,30]
[422252586,1778766640000,-154.0,0.00023,30]
[422252591,1778766640000,-154.0,0.00023,30]
[422252590,1778766640000,-154.0,0.00023,30]
[422252595,1778766640000,-154.0,0.00023,30]
[422252597,1778766640000,-154.0,0.00023,30]
[422252593,1778766640000,-154.0,0.00023,30]
[422252596,1778766640000,-154.0,0.00023,30]
[422252592,1778766640000,-154.0,0.00023,30]
[422252598,1778766640000,-154.0,0.00023,30]
[422252594,1778766640000,-154.0,0.00023,30]
[422252599,1778766640000,-154.0,0.00023,30]
[422252544,1778766640000,-248.0,0.00022,2]
[422252575,1778766640000,-711.0,0.00023,2]
[422252569,1778766640000,-3426.0,0.00023,2]
[422252585,1778766640000,-154.0,0.00023,30]
[422252567,1778766640000,-200.0,0.00023,30]
[422252537,1778766640000,-217.0,0.00022,2]
[422252570,1778766640000,-4639.0,0.00023,2]
[422252547,1778766640000,-2367.0,0.00022,2]
[422252542,1778766640000,-450.0,0.00022,2]
[422252543,1778766640000,-711.0,0.00022,2]
[422252548,1778766640000,-181.87,0.00022,2]
[422252560,1778766640000,-482.58,0.00022484,2]
[422252558,1778766640000,-1873.56,0.00022466,2]
[422252554,1778766640000,-2661.0,0.00022353,2]
[422252553,1778766640000,-376.36,0.00022342,2]
[422252549,1778766640000,-482.55,0.00022055,2]
[422252559,1778766640000,-765.41,0.00022466,2]
[422252550,1778766640000,-3187.01538585,0.00022136,2]
[422252555,1778766640000,-321.19301205,0.00022374,2]
[422252565,1778766640000,-157.0,0.00022885,3]
[422252568,1778766640000,-217.0,0.00023,2]
[422252566,1778766640000,-206.0,0.00023,2]
[422252551,1778766640000,-1206.53,0.000222,7]
[422252563,1778766640000,-500.0,0.00022642,2]
[422252571,1778766640000,-200.0,0.00023,30]
[422252572,1778766640000,-237.0,0.00023,2]
[422252564,1778766640000,-13767.27727345,0.00022656,2]
[422252561,1778766640000,-156.57,0.00022603,2]
[422252556,1778766640000,-2991.49051684,0.00022428,2]
[422252557,1778766640000,-1501.04,0.00022466,2]
[422252552,1778766640000,-482.55,0.0002227,2]
[422252562,1778766640000,-150.0,0.00022603,2]
[422252633,1778766641000,-1150.0,0.00023092,2]
[422252651,1778766641000,-2000.0,0.00023205,2]
[422252652,1778766641000,-2000.0,0.00023205,2]
[422252641,1778766641000,-1550.0,0.00023203,2]
[422252635,1778766641000,-1150.0,0.00023092,2]
[422252632,1778766641000,-1150.0,0.00023092,2]
[422252639,1778766641000,-1146.0,0.00023092,2]
[422252638,1778766641000,-1150.0,0.00023092,2]
[422252636,1778766641000,-1150.0,0.00023092,2]
[422252640,1778766641000,-820.27187466,0.00023108,2]
[422252637,1778766641000,-1150.0,0.00023092,2]
[422252634,1778766641000,-1150.0,0.00023092,2]
[422252643,1778766641000,-1550.0,0.00023203,2]
[422252659,1778766641000,-2000.0,0.00023205,2]
[422252644,1778766641000,-1550.0,0.00023203,2]
[422252650,1778766641000,-1389.0,0.00023203,2]
[422252647,1778766641000,-1550.0,0.00023203,2]
[422252648,1778766641000,-1550.0,0.00023203,2]
[422252645,1778766641000,-1550.0,0.00023203,2]
[422252646,1778766641000,-1550.0,0.00023203,2]
[422252654,1778766641000,-2000.0,0.00023205,2]
[422252653,1778766641000,-2000.0,0.00023205,2]
[422252657,1778766641000,-2000.0,0.00023205,2]
[422252655,1778766641000,-2000.0,0.00023205,2]
[422252656,1778766641000,-2000.0,0.00023205,2]
[422252662,1778766641000,-2000.0,0.00023205,2]
[422252629,1778766641000,-159.0,0.00023,30]
[422252642,1778766641000,-1550.0,0.00023203,2]
[422252630,1778766641000,-1150.0,0.00023092,2]
[422252600,1778766641000,-154.0,0.00023,30]
[422252628,1778766641000,-159.0,0.00023,30]
[422252660,1778766641000,-2000.0,0.00023205,2]
[422252601,1778766641000,-154.0,0.00023,30]
[422252602,1778766641000,-154.0,0.00023,30]
[422252604,1778766641000,-154.0,0.00023,30]
[422252605,1778766641000,-154.0,0.00023,30]
[422252613,1778766641000,-159.0,0.00023,30]
[422252603,1778766641000,-154.0,0.00023,30]
[422252611,1778766641000,-154.0,0.00023,30]
[422252606,1778766641000,-154.0,0.00023,30]
[422252614,1778766641000,-159.0,0.00023,30]
[422252607,1778766641000,-154.0,0.00023,30]
[422252610,1778766641000,-154.0,0.00023,30]
[422252608,1778766641000,-154.0,0.00023,30]
[422252631,1778766641000,-1150.0,0.00023092,2]
[422252609,1778766641000,-154.0,0.00023,30]
[422252616,1778766641000,-159.0,0.00023,30]
[422252626,1778766641000,-159.0,0.00023,30]
[422252615,1778766641000,-159.0,0.00023,30]
[422252619,1778766641000,-159.0,0.00023,30]
[422252627,1778766641000,-159.0,0.00023,30]
[422252617,1778766641000,-159.0,0.00023,30]
[422252618,1778766641000,-159.0,0.00023,30]
[422252621,1778766641000,-159.0,0.00023,30]
[422252620,1778766641000,-159.0,0.00023,30]
[422252622,1778766641000,-159.0,0.00023,30]
[422252625,1778766641000,-159.0,0.00023,30]
[422252624,1778766641000,-159.0,0.00023,30]
[422252623,1778766641000,-159.0,0.00023,30]
[422252612,1778766641000,-162.0,0.00023,30]
[422252663,1778766641000,-2000.0,0.00023205,2]
[422252649,1778766641000,-1550.0,0.00023203,2]
[422252661,1778766641000,-2000.0,0.00023205,2]
[422252695,1778766641000,-169.0,0.00024,2]
[422252697,1778766641000,-2367.0,0.00024,2]
[422252698,1778766641000,-1000.0,0.00024153,7]
[422252700,1778766641000,-376.1,0.00024289,2]
[422252696,1778766641000,-466.0,0.00024,2]
[422252699,1778766641000,-1584.0,0.00024209,3]
[422252701,1778766641000,-132827.0,0.000243,2]
[422252703,1778766641000,-188.04,0.00024357,2]
[422252704,1778766641000,-1506.33096028,0.00024364,2]
[422252706,1778766641000,-1206.53,0.000244,7]
[422252709,1778766641000,-926.0,0.00024464,2]
[422252713,1778766641000,-150.0,0.00024464,2]
[422252710,1778766641000,-1354.0,0.00024464,2]
[422252693,1778766641000,-711.0,0.00024,2]
[422252708,1778766641000,-3542.0,0.00024464,2]
[422252712,1778766641000,-6052.0,0.00024464,2]
[422252711,1778766641000,-1270.0,0.00024464,2]
[422252707,1778766641000,-376.1,0.00024405,2]
[422252715,1778766641000,-2587.48505217,0.000245,2]
[422252718,1778766641000,-1000.0,0.00024658,2]
[422252719,1778766641000,-1262.82,0.00024658,2]
[422252721,1778766641000,-500.0,0.00024658,2]
[422252714,1778766641000,-930.0,0.00024464,2]
[422252722,1778766641000,-150.0,0.00024658,2]
[422252720,1778766641000,-402.98440873,0.00024658,2]
[422252716,1778766641000,-170.43264498,0.00024524,2]
[422252717,1778766641000,-632.0,0.00024624,2]
[422252658,1778766641000,-2000.0,0.00023205,2]
[422252702,1778766641000,-2661.0,0.00024324,2]
[422252694,1778766641000,-248.0,0.00024,2]
[422252705,1778766641000,-600.0,0.00024397,2]
[422252690,1778766641000,-237.0,0.00024,2]
[422252674,1778766641000,-1700.0,0.00023208,2]
[422252692,1778766641000,-500.0,0.00024,2]
[422252673,1778766641000,-1700.0,0.00023208,2]
[422252664,1778766641000,-2000.0,0.00023205,2]
[422252671,1778766641000,-1700.0,0.00023208,2]
[422252672,1778766641000,-1700.0,0.00023208,2]
[422252675,1778766641000,-1700.0,0.00023208,2]
[422252665,1778766641000,-2000.0,0.00023205,2]
[422252676,1778766641000,-1700.0,0.00023208,2]
[422252667,1778766641000,-2000.0,0.00023205,2]
[422252669,1778766641000,-2000.0,0.00023205,2]
[422252723,1778766641000,-167.71504407,0.00024751,4]
[422252668,1778766641000,-2000.0,0.00023205,2]
[422252670,1778766641000,-2000.0,0.00023205,2]
[422252666,1778766641000,-2000.0,0.00023205,2]
[422252677,1778766641000,-1700.0,0.00023208,2]
[422252691,1778766641000,-202.0,0.00024,2]
[422252678,1778766641000,-1700.0,0.00023208,2]
[422252682,1778766641000,-603.40096552,0.00023289,2]
[422252686,1778766641000,-206.0,0.00024,2]
[422252684,1778766641000,-20595.58,0.00023845,2]
[422252689,1778766641000,-4639.0,0.00024,2]
[422252683,1778766641000,-500.0,0.00023521,2]
[422252687,1778766641000,-217.0,0.00024,2]
[422252679,1778766641000,-1700.0,0.00023208,2]
[422252680,1778766641000,-1598.0,0.00023208,2]
[422252681,1778766641000,-150.0,0.00023288,2]
[422252688,1778766641000,-3426.0,0.00024,2]
[422252685,1778766641000,-150.0,0.00023973,2]
[422252768,1778766642000,-500.0,0.00025947,4]
[422252764,1778766642000,-5584.68,0.00025786,2]
[422252765,1778766642000,-6878.40236706,0.000258,2]
[422252763,1778766642000,-2423.94,0.00025786,2]
[422252761,1778766642000,-3002.89,0.00025786,2]
[422252756,1778766642000,-160.61382447,0.00025557,36]
[422252766,1778766642000,-499.73797022,0.00025836,2]
[422252759,1778766642000,-5530.0,0.000257,5]
[422252760,1778766642000,-20595.58,0.00025768,7]
[422252758,1778766642000,-603.40096552,0.00025647,2]
[422252770,1778766642000,-526.86,0.00025947,4]
[422252762,1778766642000,-329.59,0.00025786,2]
[422252769,1778766642000,-500.0,0.00025947,4]
[422252783,1778766642000,-2009.39,0.00026027,2]
[422252771,1778766642000,-10000.0,0.00025955,2]
[422252776,1778766642000,-214.95940296,0.00026,7]
[422252775,1778766642000,-208.3309892,0.00026,7]
[422252774,1778766642000,-56617.44647724,0.00026,7]
[422252772,1778766642000,-6878.40236706,0.00026,2]
[422252773,1778766642000,-550.0,0.00026,2]
[422252778,1778766642000,-609.53,0.00026027,2]
[422252777,1778766642000,-1315.39,0.00026027,2]
[422252785,1778766642000,-1315.39,0.00026055,7]
[422252780,1778766642000,-2375.37,0.00026027,2]
[422252787,1778766642000,-2015.85,0.00026055,7]
[422252779,1778766642000,-2015.85,0.00026027,2]
[422252757,1778766642000,-453.63,0.00025644,2]
[422252767,1778766642000,-1206.53,0.000259,7]
[422252755,1778766642000,-600.0,0.00025521,3]
[422252725,1778766642000,-2006.51,0.000248,2]
[422252750,1778766642000,-243.84,0.00025219,6]
[422252781,1778766642000,-609.36,0.00026027,2]
[422252727,1778766642000,-200.0,0.00024851,2]
[422252726,1778766642000,-1000.0,0.00024851,15]
[422252724,1778766642000,-157.0,0.00024781,3]
[422252730,1778766642000,-6878.40236706,0.00025,2]
[422252728,1778766642000,-737.0,0.00024884,2]
[422252734,1778766642000,-3440.75929917,0.00025,2]
[422252739,1778766642000,-179.73,0.00025,2]
[422252733,1778766642000,-227.81095167,0.00025,2]
[422252731,1778766642000,-216.0,0.00025,2]
[422252736,1778766642000,-248.12944582,0.00025,2]
[422252732,1778766642000,-500.0,0.00025,2]
[422252738,1778766642000,-724.60692728,0.00025,2]
[422252749,1778766642000,-181.87,0.00025192,7]
[422252740,1778766642000,-179.74,0.00025,2]
[422252737,1778766642000,-202.01962833,0.00025,2]
[422252741,1778766642000,-266.39684226,0.00025,2]
[422252743,1778766642000,-483.59630703,0.00025,2]
[422252744,1778766642000,-2383.12908863,0.00025,2]
[422252752,1778766642000,-6878.40236706,0.000253,2]
[422252753,1778766642000,-150.0,0.00025342,2]
[422252745,1778766642000,-5530.0,0.00025,3]
[422252742,1778766642000,-182.54203541,0.00025,2]
[422252754,1778766642000,-6878.40236706,0.000255,2]
[422252748,1778766642000,-849.0,0.00025126,2]
[422252746,1778766642000,-208.3309892,0.00025,7]
[422252747,1778766642000,-214.95940296,0.00025,7]
[422252751,1778766642000,-13767.27727345,0.00025266,2]
[422252735,1778766642000,-4653.64124545,0.00025,2]
[422252784,1778766642000,-500.0,0.00026028,2]
[422252729,1778766642000,-600.0,0.00024959,2]
[422252786,1778766642000,-609.53,0.00026055,7]
[422252816,1778766642000,-609.53,0.00026171,30]
[422252817,1778766642000,-2015.85,0.00026171,7]
[422252821,1778766642000,-2009.39,0.00026171,7]
[422252819,1778766642000,-609.36,0.00026171,30]
[422252820,1778766642000,-1310.01,0.00026171,7]
[422252826,1778766642000,-609.36,0.000262,2]
[422252838,1778766642000,-2009.39,0.00026229,7]
[422252828,1778766642000,-2009.39,0.000262,2]
[422252840,1778766642000,-1315.39,0.00026257,2]
[422252839,1778766642000,-601.0,0.00026247,2]
[422252841,1778766642000,-609.53,0.00026257,30]
[422252829,1778766642000,-1066.0,0.00026207,7]
[422252827,1778766642000,-1310.01,0.000262,2]
[422252825,1778766642000,-2375.37,0.000262,2]
[422252831,1778766642000,-609.53,0.00026229,7]
[422252832,1778766642000,-2015.85,0.00026229,7]
[422252836,1778766642000,-609.36,0.00026229,7]
[422252837,1778766642000,-1310.01,0.00026229,7]
[422252834,1778766642000,-2375.37,0.00026229,7]
[422252844,1778766642000,-609.36,0.00026257,30]
[422252842,1778766642000,-2015.85,0.00026257,2]
[422252845,1778766642000,-1310.01,0.00026257,2]
[422252843,1778766642000,-2375.37,0.00026257,2]
[422252846,1778766642000,-2009.39,0.00026257,2]
[422252849,1778766642000,-2015.85,0.00026286,2]
[422252847,1778766642000,-1315.39,0.00026286,2]
[422252848,1778766642000,-609.53,0.00026286,2]
[422252782,1778766642000,-1310.01,0.00026027,2]
[422252830,1778766642000,-1315.39,0.00026229,7]
[422252824,1778766642000,-2015.85,0.000262,2]
[422252851,1778766642000,-2375.37,0.00026286,2]
[422252822,1778766642000,-1315.39,0.000262,2]
[422252823,1778766642000,-609.53,0.000262,2]
[422252799,1778766642000,-2009.39,0.00026084,2]
[422252801,1778766642000,-1315.39,0.00026113,2]
[422252790,1778766642000,-1310.01,0.00026055,7]
[422252788,1778766642000,-2375.37,0.00026055,7]
[422252792,1778766642000,-600.0,0.00026082,3]
[422252791,1778766642000,-2009.39,0.00026055,7]
[422252794,1778766642000,-609.53,0.00026084,30]
[422252789,1778766642000,-609.36,0.00026055,7]
[422252798,1778766642000,-1310.01,0.00026084,2]
[422252797,1778766642000,-609.36,0.00026084,30]
[422252795,1778766642000,-2015.85,0.00026084,2]
[422252796,1778766642000,-2375.37,0.00026084,2]
[422252804,1778766642000,-2375.37,0.00026113,2]
[422252793,1778766642000,-1315.39,0.00026084,2]
[422252813,1778766642000,-1310.01,0.00026142,7]
[422252818,1778766642000,-2375.37,0.00026171,7]
[422252815,1778766642000,-1315.39,0.00026171,7]
[422252814,1778766642000,-2009.39,0.00026142,7]
[422252809,1778766642000,-609.53,0.00026142,7]
[422252811,1778766642000,-2375.37,0.00026142,7]
[422252806,1778766642000,-1310.01,0.00026113,2]
[422252808,1778766642000,-1315.39,0.00026142,7]
[422252810,1778766642000,-2015.85,0.00026142,7]
[422252805,1778766642000,-609.36,0.00026113,2]
[422252803,1778766642000,-2015.85,0.00026113,2]
[422252812,1778766642000,-609.36,0.00026142,7]
[422252802,1778766642000,-609.53,0.00026113,2]
[422252807,1778766642000,-2009.39,0.00026113,2]
[422252902,1778766643000,-2015.85,0.00026459,2]
[422252907,1778766643000,-1384.0,0.00026483,7]
[422252899,1778766643000,-151.0,0.00026456,7]
[422252896,1778766643000,-609.36,0.00026431,30]
[422252893,1778766643000,-609.53,0.00026431,30]
[422252894,1778766643000,-2015.85,0.00026431,2]
[422252891,1778766643000,-2009.39,0.00026402,7]
[422252889,1778766643000,-609.36,0.00026402,7]
[422252888,1778766643000,-2375.37,0.00026402,7]
[422252890,1778766643000,-1310.01,0.00026402,7]
[422252895,1778766643000,-2375.37,0.00026431,2]
[422252897,1778766643000,-1310.01,0.00026431,2]
[422252903,1778766643000,-2375.37,0.00026459,2]
[422252905,1778766643000,-1310.01,0.00026459,2]
[422252901,1778766643000,-609.53,0.00026459,2]
[422252900,1778766643000,-1315.39,0.00026459,2]
[422252904,1778766643000,-609.36,0.00026459,2]
[422252906,1778766643000,-2009.39,0.00026459,2]
[422252909,1778766643000,-609.53,0.00026488,7]
[422252910,1778766643000,-2015.85,0.00026488,7]
[422252911,1778766643000,-2375.37,0.00026488,7]
[422252912,1778766643000,-609.36,0.00026488,7]
[422252913,1778766643000,-1310.01,0.00026488,7]
[422252908,1778766643000,-1315.39,0.00026488,7]
[422252914,1778766643000,-2009.39,0.00026488,7]
[422252892,1778766643000,-1315.39,0.00026431,2]
[422252898,1778766643000,-2009.39,0.00026431,2]
[422252886,1778766643000,-609.53,0.00026402,7]
[422252861,1778766643000,-2375.37,0.00026315,7]
[422252881,1778766643000,-609.36,0.00026373,2]
[422252915,1778766643000,-6878.40236706,0.000265,2]
[422252853,1778766643000,-609.36,0.00026286,2]
[422252856,1778766643000,-2661.0,0.00026296,2]
[422252854,1778766643000,-1310.01,0.00026286,2]
[422252855,1778766643000,-2009.39,0.00026286,2]
[422252858,1778766643000,-1315.39,0.00026315,7]
[422252869,1778766643000,-2015.85,0.00026344,7]
[422252857,1778766643000,-6878.40236706,0.000263,2]
[422252860,1778766643000,-2015.85,0.00026315,7]
[422252862,1778766643000,-609.36,0.00026315,7]
[422252863,1778766643000,-1310.01,0.00026315,7]
[422252864,1778766643000,-2009.39,0.00026315,7]
[422252859,1778766643000,-609.53,0.00026315,7]
[422252871,1778766643000,-2375.37,0.00026344,7]
[422252873,1778766643000,-609.36,0.00026344,30]
[422252865,1778766643000,-1315.39,0.00026344,7]